fUST/lending_fUST_20240423
["ID","MTS","AMOUNT","RATE_DAILY","PERIOD"]
[323242548,1713838250611,-500.0,0.0002639,2]
[323242549,1713838250622,-500.0,0.0002639,2]
[323242550,1713838250631,-500.0,0.0002639,2]
[323242551,1713838250641,-169.41469414,0.00026399,2]
[323242552,1713838250650,-154.30051212,0.00026414,2]
[323242553,1713838250659,-154.30051212,0.00026544,2]
[323242554,1713838250668,-500.0,0.00026575,2]
[323242555,1713838250678,-638.94,0.00026575,2]
[323242556,1713838250688,-774.33,0.00026575,2]
[323242557,1713838250698,-613.82,0.00026575,2]
[323242558,1713838250708,-591.86,0.00026575,2]
[323242559,1713838250718,-500.0,0.00026575,2]
[323242560,1713838250727,-511.27,0.00026575,2]
[323242561,1713838250738,-500.0,0.00026575,2]
[323242562,1713838250747,-500.0,0.00026575,2]
[323242563,1713838250758,-734.43,0.00026575,2]
[323242564,1713838250767,-774.0,0.00026575,2]
[323242565,1713838250778,-2163.17,0.00026575,2]
[323242566,1713838250787,-500.0,0.00026575,2]
[323242567,1713838250797,-500.0,0.00026575,2]
[323242568,1713838250807,-500.0,0.00026575,2]
[323242569,1713838250816,-500.0,0.00026575,2]
[323242570,1713838250826,-500.0,0.00026575,2]
[323242571,1713838250836,-500.0,0.00026575,2]
[323242572,1713838250845,-626.26,0.00026575,2]
[323242573,1713838250856,-1458.76,0.00026575,2]
[323242574,1713838250865,-500.0,0.00026575,2]
[323242575,1713838250875,-500.0,0.00026575,2]
[323242576,1713838250886,-2178.64,0.00026575,2]
[323242577,1713838250896,-500.0,0.00026575,2]
[323242578,1713838250906,-659.77,0.00026575,2]
[323242579,1713838250916,-1701.1,0.00026575,2]
[323242580,1713838250926,-375.81737596,0.00026575,2]
[323242581,1713838250936,-733.38,0.00026575,2]
[323242582,1713838250946,-585.62,0.00026575,2]
[323242583,1713838250956,-2227.15,0.00026575,2]
[323242584,1713838250966,-500.0,0.00026575,2]
[323242585,1713838250976,-2984.67,0.00026575,2]
[323242586,1713838250985,-577.89,0.00026575,2]
[323242587,1713838250995,-649.1,0.00026575,2]
[323242588,1713838251006,-1297.58,0.00026575,2]
[323242589,1713838251015,-812.71,0.00026575,2]
[323242590,1713838251026,-4144.62,0.00026575,2]
[323242591,1713838251036,-1985.97,0.00026575,2]
[323242592,1713838251046,-3976.81,0.00026575,2]
[323242593,1713838251056,-1388.53,0.00026575,2]
[323242594,1713838251066,-163.91085509,0.00026575,2]
[323242595,1713838251076,-2239.73,0.00026575,2]
[323242596,1713838251087,-500.0,0.00026575,2]
[323242597,1713838251098,-500.0,0.00026575,2]
[323242598,1713838251109,-736.99,0.00026575,2]
[323242599,1713838251119,-500.0,0.00026575,2]
[323242600,1713838251129,-974.87,0.00026575,2]
[323242601,1713838251139,-719.16,0.00026575,2]
[323242602,1713838251149,-583.2022895,0.00026575,2]
[323242603,1713838251159,-650.08,0.00026575,2]
[323242604,1713838251169,-510.21,0.00026575,2]
[323242605,1713838251179,-11117.57,0.00026575,2]
[323242606,1713838251189,-983.83,0.00026575,2]
[323242607,1713838251199,-531.98,0.00026575,2]
[323242608,1713838251210,-525.45,0.00026575,2]
[323242609,1713838251219,-2637.44,0.00026575,2]
[323242610,1713838251228,-500.0,0.00026575,2]
[323242611,1713838251238,-1395.11521714,0.00026593,2]
[323242612,1713838251248,-154.76254067,0.000266,2]
[323242613,1713838251259,-151.0,0.00026662,2]
[323242614,1713838251269,-500.72,0.00026662,2]
[323242615,1713838251281,-500.0,0.00026662,2]
[323242616,1713838251291,-500.0,0.00026662,2]
[323242617,1713838251303,-538.88989124,0.00026662,2]
[323242618,1713838251314,-1154.75,0.00026662,2]
[323242619,1713838251324,-500.0,0.00026662,2]
[323242620,1713838251334,-500.0,0.00026662,2]
[323242621,1713838251345,-500.0,0.00026662,2]
[323242622,1713838251356,-500.0,0.00026662,2]
[323242623,1713838251366,-708.92,0.00026662,2]
[323242624,1713838251377,-710.36,0.00026662,2]
[323242625,1713838251387,-524.21734633,0.00026662,2]
[323242626,1713838251397,-500.0,0.00026662,2]
[323242627,1713838251407,-500.0,0.00026662,2]
[323242628,1713838251416,-500.0,0.00026662,2]
[323242629,1713838251425,-500.0,0.00026664,2]
[323242630,1713838251434,-500.0,0.00026664,2]
[323242631,1713838251445,-478.80416127,0.00026664,2]
[323242632,1713838251455,-500.0,0.00026664,2]
[323242633,1713838251465,-503.951946,0.00026664,2]
[323242634,1713838251475,-686.78,0.00026664,2]
[323242635,1713838251486,-497.80400615,0.00026664,2]
[323242636,1713838251496,-500.0,0.00026664,2]
[323242637,1713838251508,-647.19054347,0.00026664,2]
[323242638,1713838251518,-500.0,0.00026664,2]
[323242639,1713838251528,-359.10810611,0.00026664,2]
[323242640,1713838251538,-503.09762238,0.00026664,2]
[323242641,1713838251550,-500.0,0.00026664,2]
[323242642,1713838251560,-500.0,0.00026664,2]
[323242643,1713838251571,-500.0,0.00026664,2]
[323242644,1713838251581,-632.66956435,0.00026664,2]
[323242645,1713838251592,-169.42192563,0.00026664,2]
[323242646,1713838251602,-500.0,0.00026664,2]
[323242647,1713838251612,-500.0,0.00026664,2]
[323242648,1713838251622,-500.0,0.00026664,2]
[323242649,1713838251633,-717.96,0.00026664,2]
[323242650,1713838251644,-599.08527048,0.00026664,2]
[323242651,1713838251653,-500.0,0.00026664,2]
[323242652,1713838251663,-500.0,0.00026664,2]
[323242653,1713838251674,-555.55011315,0.00026664,2]
[323242654,1713838251684,-500.0,0.00026664,2]
[323242655,1713838251695,-1395.11521714,0.00026674,2]
[323242656,1713838251705,-150.83408251,0.00026709,2]
[323242657,1713838251716,-19415.60337448,0.00026713,2]
[323242658,1713838251726,-263.068761,0.00026713,2]
[323242659,1713838251736,-221.58126833,0.00026784,2]
[323242660,1713838251747,-1395.11521714,0.00026797,2]
[323242661,1713838251759,-515.68052767,0.000268,2]
[323242662,1713838251769,-1663.43823622,0.00026808,2]
[323242663,1713838251780,-500.0,0.00026849,2]
[323242664,1713838251790,-638.94,0.00026849,2]
[323242665,1713838251800,-774.33,0.00026849,2]
[323242666,1713838251889,-613.82,0.00026849,2]
[323242667,1713838251901,-591.86,0.00026849,2]
[323242668,1713838251912,-500.0,0.00026849,2]
[323242669,1713838251923,-511.27,0.00026849,2]
[323242670,1713838251932,-500.0,0.00026849,2]
[323242671,1713838251942,-197.69784712,0.00026849,2]
[323242672,1713838251952,-734.43,0.00026849,2]
[323242673,1713838251963,-774.0,0.00026849,2]
[323242674,1713838251974,-2163.17,0.00026849,2]
[323242675,1713838251984,-500.0,0.00026849,2]
[323242676,1713838251996,-500.0,0.00026849,2]
[323242677,1713838252008,-500.0,0.00026849,2]
[323242678,1713838252018,-500.0,0.00026849,2]
[323242679,1713838252029,-500.0,0.00026849,2]
[323242680,1713838252038,-500.0,0.00026849,2]
[323242681,1713838252050,-626.26,0.00026849,2]
[323242682,1713838252063,-1458.76,0.00026849,2]
[323242683,1713838252076,-500.0,0.00026849,2]
[323242684,1713838252086,-500.0,0.00026849,2]
[323242685,1713838252096,-2178.64,0.00026849,2]
[323242686,1713838252107,-500.0,0.00026849,2]
[323242687,1713838252118,-659.77,0.00026849,2]
[323242688,1713838252127,-1701.1,0.00026849,2]
[323242689,1713838252138,-733.38,0.00026849,2]
[323242690,1713838252149,-585.62,0.00026849,2]
[323242691,1713838252159,-2227.15,0.00026849,2]
[323242692,1713838252169,-500.0,0.00026849,2]
[323242693,1713838252179,-2984.67,0.00026849,2]
[323242694,1713838252189,-577.89,0.00026849,2]
[323242695,1713838252198,-649.1,0.00026849,2]
[323242696,1713838252209,-1297.58,0.00026849,2]
[323242697,1713838252220,-812.71,0.00026849,2]
[323242698,1713838252230,-4144.62,0.00026849,2]
[323242699,1713838252239,-1985.97,0.00026849,2]
[323242700,1713838252251,-3976.81,0.00026849,2]
[323242701,1713838252260,-1388.53,0.00026849,2]
[323242702,1713838252269,-2239.73,0.00026849,2]
[323242703,1713838252282,-500.0,0.00026849,2]
[323242704,1713838252291,-500.0,0.00026849,2]
[323242705,1713838252301,-736.99,0.00026849,2]
[323242706,1713838252311,-500.0,0.00026849,2]
[323242707,1713838252322,-974.87,0.00026849,2]
[323242708,1713838252332,-719.16,0.00026849,2]
[323242709,1713838252343,-650.08,0.00026849,2]
[323242710,1713838252355,-510.21,0.00026849,2]
[323242711,1713838252365,-11117.57,0.00026849,2]
[323242712,1713838252376,-983.83,0.00026849,2]
[323242713,1713838252387,-531.98,0.00026849,2]
[323242714,1713838252398,-525.45,0.00026849,2]
[323242715,1713838252409,-2637.44,0.00026849,2]
[323242716,1713838252428,-500.0,0.00026849,2]
[323242717,1713838252438,-155.84795945,0.00026866,2]
[323242718,1713838252448,-1395.11521714,0.00026869,2]
[323242719,1713838252458,-500.72,0.00026936,2]
[323242720,1713838252469,-500.0,0.00026936,2]
[323242721,1713838252478,-500.0,0.00026936,2]
[323242722,1713838252488,-1154.75,0.00026936,2]
[323242723,1713838252499,-500.0,0.00026936,2]
[323242724,1713838252509,-206.59761713,0.00026936,2]
[323242725,1713838252519,-500.0,0.00026936,2]
[323242726,1713838252530,-610.8980254,0.00026936,2]
[323242727,1713838252542,-708.92,0.00026936,2]
[323242728,1713838252552,-710.36,0.00026936,2]
[323242729,1713838252561,-500.0,0.00026936,2]
[323242730,1713838252571,-500.0,0.00026936,2]
[323242731,1713838252580,-500.0,0.00026936,2]
[323242732,1713838252592,-154.82968734,0.00026938,2]
[323242733,1713838252602,-20002.81032043,0.00026938,2]
[323242734,1713838252612,-492.50350801,0.00026938,2]
[323242735,1713838252622,-633.38304819,0.00026938,2]
[323242736,1713838252632,-504.13362956,0.00026938,2]
[323242737,1713838252641,-686.78,0.00026938,2]
[323242738,1713838252650,-500.0,0.00026938,2]
[323242739,1713838252660,-500.0,0.00026938,2]
[323242740,1713838252670,-500.0,0.00026938,2]
[323242741,1713838252678,-305.88556607,0.00026938,2]
[323242742,1713838252688,-500.0,0.00026938,2]
[323242743,1713838252697,-500.0,0.00026938,2]
[323242744,1713838252707,-500.0,0.00026938,2]
[323242745,1713838252716,-499.0342863,0.00026938,2]
[323242746,1713838252725,-717.96,0.00026938,2]
[323242747,1713838252734,-500.0,0.00026938,2]
[323242748,1713838252744,-513.24545918,0.00026938,2]
[323242749,1713838252753,-495.42798901,0.00026938,2]
[323242750,1713838252762,-150.5,0.0002697,35]
[323242751,1713838252771,-150.5,0.0002698,35]
[323242752,1713838252780,-620.01245998,0.00026981,2]
[323242753,1713838252790,-150.5,0.0002699,35]
[323242754,1713838252799,-151.0,0.00026998,2]
[323242755,1713838252808,-154.82968734,0.00027,2]
[323242756,1713838252817,-332.38819351,0.00027,20]
[323242757,1713838252827,-8515.70774373,0.00027,2]
[323242758,1713838252837,-612.27031471,0.00027,2]
[323242759,1713838252846,-786.94300056,0.00027,30]
[323242760,1713838252856,-169.41469414,0.00027035,2]
[323242761,1713838252867,-1000.0,0.000271,2]
[323242762,1713838252877,-500.0,0.00027123,2]
[323242763,1713838252888,-638.94,0.00027123,2]
[323242764,1713838252898,-774.33,0.00027123,2]
[323242765,1713838252908,-613.82,0.00027123,2]
[323242766,1713838252918,-591.86,0.00027123,2]
[323242767,1713838252928,-500.0,0.00027123,2]
[323242768,1713838252938,-511.27,0.00027123,2]
[323242769,1713838252948,-363.50867753,0.00027123,2]
[323242770,1713838252959,-734.43,0.00027123,2]
[323242771,1713838252969,-774.0,0.00027123,2]
[323242772,1713838252979,-2163.17,0.00027123,2]
[323242773,1713838252988,-500.0,0.00027123,2]
[323242774,1713838252998,-500.0,0.00027123,2]
[323242775,1713838253008,-500.0,0.00027123,2]
[323242776,1713838253019,-500.0,0.00027123,2]
[323242777,1713838253029,-500.0,0.00027123,2]
[323242778,1713838253040,-500.0,0.00027123,2]
[323242779,1713838253050,-626.26,0.00027123,2]
[323242780,1713838253060,-1458.76,0.00027123,2]
[323242781,1713838253070,-500.0,0.00027123,2]
[323242782,1713838253080,-500.0,0.00027123,2]
[323242783,1713838253090,-2178.64,0.00027123,2]
[323242784,1713838253100,-500.0,0.00027123,2]
[323242785,1713838253110,-659.77,0.00027123,2]
[323242786,1713838253120,-1701.1,0.00027123,2]
[323242787,1713838253130,-733.38,0.00027123,2]
[323242788,1713838253140,-585.62,0.00027123,2]
[323242789,1713838253150,-2227.15,0.00027123,2]
[323242790,1713838253161,-500.0,0.00027123,2]
[323242791,1713838253171,-2984.67,0.00027123,2]
[323242792,1713838253181,-577.89,0.00027123,2]
[323242793,1713838253192,-649.1,0.00027123,2]
[323242794,1713838253202,-1297.58,0.00027123,2]
[323242795,1713838253212,-812.71,0.00027123,2]
[323242796,1713838253222,-4144.62,0.00027123,2]
[323242797,1713838253232,-1985.97,0.00027123,2]
[323242798,1713838253243,-3976.81,0.00027123,2]
[323242799,1713838253254,-1388.53,0.00027123,2]
[323242800,1713838253264,-2239.73,0.00027123,2]
[323242801,1713838253278,-500.0,0.00027123,2]
[323242802,1713838253287,-334.92248627,0.00027123,2]
[323242803,1713838253298,-736.99,0.00027123,2]
[323242804,1713838253308,-500.0,0.00027123,2]
[323242805,1713838253319,-974.87,0.00027123,2]
[323242806,1713838253330,-719.16,0.00027123,2]
[323242807,1713838253340,-650.08,0.00027123,2]
[323242808,1713838253350,-510.21,0.00027123,2]
[323242809,1713838253360,-11117.57,0.00027123,2]
[323242810,1713838253371,-983.83,0.00027123,2]
[323242811,1713838253382,-531.98,0.00027123,2]
[323242812,1713838253392,-525.45,0.00027123,2]
[323242813,1713838253402,-2637.44,0.00027123,2]
[323242814,1713838253413,-191.33985253,0.00027123,2]
[323242815,1713838253423,-301.66816502,0.00027158,4]
[323242816,1713838253432,-500.72,0.0002721,2]
[323242817,1713838253443,-500.0,0.0002721,2]
[323242818,1713838253454,-425.62500222,0.0002721,2]
[323242819,1713838253464,-1154.75,0.0002721,2]
[323242820,1713838253474,-500.0,0.0002721,2]
[323242821,1713838253484,-500.0,0.0002721,2]
[323242822,1713838253495,-708.92,0.0002721,2]
[323242823,1713838253505,-710.36,0.0002721,2]
[323242824,1713838253515,-500.0,0.0002721,2]
[323242825,1713838253525,-500.0,0.0002721,2]
[323242826,1713838253534,-500.0,0.0002721,2]
[323242827,1713838253545,-686.78,0.00027212,2]
[323242828,1713838253555,-500.0,0.00027212,2]
[323242829,1713838253564,-517.77113704,0.00027212,2]
[323242830,1713838253573,-500.0,0.00027212,2]
[323242831,1713838253583,-278.93636536,0.00027212,2]
[323242832,1713838253592,-318.65708754,0.00027212,2]
[323242833,1713838253674,-500.0,0.00027212,2]
[323242834,1713838253683,-717.96,0.00027212,2]
[323242835,1713838253692,-500.0,0.00027212,2]
[323242836,1713838253702,-169.41469414,0.00027252,2]
[323242837,1713838253711,-151.0,0.00027272,2]
[323242838,1713838253720,-237.6959,0.00027275,2]
[323242839,1713838253729,-154.30051212,0.00027302,2]
[323242840,1713838253739,-1663.43823622,0.00027345,2]
[323242841,1713838253747,-154.76254067,0.00027371,2]
[323242842,1713838253757,-500.0,0.00027397,2]
[323242843,1713838253767,-500.0,0.00027397,2]
[323242844,1713838253775,-500.0,0.00027397,2]
[323242845,1713838253785,-500.0,0.00027397,2]
[323242846,1713838253793,-500.0,0.00027397,2]
[323242847,1713838253803,-500.0,0.00027397,2]
[323242848,1713838253812,-500.0,0.00027397,2]
[323242849,1713838253821,-500.0,0.00027397,2]
[323242850,1713838253830,-500.0,0.00027397,2]
[323242851,1713838253839,-500.0,0.00027397,2]
[323242852,1713838253848,-500.0,0.00027397,2]
[323242853,1713838253857,-500.0,0.00027397,2]
[323242854,1713838253866,-500.0,0.00027397,2]
[323242855,1713838253875,-500.0,0.00027397,2]
[323242856,1713838253885,-500.0,0.00027397,2]
[323242857,1713838253894,-500.0,0.00027397,2]
[323242858,1713838253902,-500.0,0.00027397,2]
[323242859,1713838253912,-500.0,0.00027397,2]
[323242860,1713838253921,-500.0,0.00027397,2]
[323242861,1713838253930,-500.0,0.00027397,2]
[323242862,1713838253939,-500.0,0.00027397,2]
[323242863,1713838253948,-500.0,0.00027397,2]
[323242864,1713838253957,-500.0,0.00027397,2]
[323242865,1713838253966,-500.0,0.00027397,2]
[323242866,1713838253975,-500.0,0.00027397,2]
[323242867,1713838253984,-500.0,0.00027397,2]
[323242868,1713838253993,-500.0,0.00027397,2]
[323242869,1713838254002,-500.0,0.00027397,2]
[323242870,1713838254011,-500.0,0.00027397,2]
[323242871,1713838254020,-500.0,0.00027397,2]
[323242872,1713838254029,-500.0,0.00027397,2]
[323242873,1713838254038,-500.0,0.00027397,2]
[323242874,1713838254048,-500.0,0.00027397,2]
[323242875,1713838254057,-500.0,0.00027397,2]
[323242876,1713838254066,-500.0,0.00027397,2]
[323242877,1713838254075,-500.0,0.00027397,2]
[323242878,1713838254083,-500.0,0.00027397,2]
[323242879,1713838254092,-500.0,0.00027397,2]
[323242880,1713838254101,-494.62180066,0.00027397,2]
[323242881,1713838254110,-500.0,0.00027397,2]
[323242882,1713838254119,-500.0,0.00027397,2]
[323242883,1713838254128,-500.0,0.00027397,2]
[323242884,1713838254137,-500.0,0.00027397,2]
[323242885,1713838254146,-500.0,0.00027397,2]
[323242886,1713838254155,-500.0,0.00027397,2]
[323242887,1713838254164,-500.0,0.00027397,2]
[323242888,1713838254172,-500.0,0.00027397,2]
[323242889,1713838254182,-500.0,0.00027397,2]
[323242890,1713838254190,-500.0,0.00027397,2]
[323242891,1713838254198,-500.0,0.00027397,2]
[323242892,1713838254207,-500.0,0.00027397,2]
[323242893,1713838254216,-500.0,0.00027397,2]
[323242894,1713838254224,-500.0,0.00027397,2]
[323242895,1713838254233,-500.0,0.00027397,2]
[323242896,1713838254242,-500.0,0.00027397,2]
[323242897,1713838254250,-500.0,0.00027397,2]
[323242898,1713838254259,-450.0,0.00027397,2]
[323242899,1713838254268,-500.0,0.00027397,2]
[323242900,1713838254280,-500.0,0.00027397,2]
[323242901,1713838254288,-500.0,0.00027397,2]
[323242902,1713838254297,-500.0,0.00027397,2]
[323242903,1713838254306,-500.0,0.00027397,2]
[323242904,1713838254315,-1040.25280545,0.00027397,14]
[323242905,1713838254324,-514.031455,0.00027397,14]
[323242906,1713838254332,-500.0,0.00027397,2]
[323242907,1713838254341,-500.0,0.00027397,2]
[323242908,1713838254349,-500.0,0.00027397,2]
[323242909,1713838254358,-500.0,0.00027397,2]
[323242910,1713838254367,-500.0,0.00027397,2]
[323242911,1713838254376,-500.0,0.00027397,2]
[323242912,1713838254384,-500.0,0.00027397,2]
[323242913,1713838254393,-500.0,0.00027397,2]
[323242914,1713838254403,-638.94,0.00027397,2]
[323242915,1713838254412,-774.33,0.00027397,2]
[323242916,1713838254421,-585.47,0.00027397,30]
[323242917,1713838254455,-585.47,0.00027397,30]
[323242918,1713838254464,-585.47,0.00027397,30]
[323242919,1713838254473,-585.47,0.00027397,30]
[323242920,1713838254482,-585.47,0.00027397,30]
[323242921,1713838254492,-585.47,0.00027397,30]
[323242922,1713838254502,-585.47,0.00027397,30]
[323242923,1713838254512,-585.47,0.00027397,30]
[323242924,1713838254520,-585.47,0.00027397,30]
[323242925,1713838254530,-585.47,0.00027397,30]
[323242926,1713838254540,-585.47,0.00027397,30]
[323242927,1713838254549,-2115.36016006,0.00027397,2]
[323242928,1713838254559,-613.82,0.00027397,2]
[323242929,1713838254570,-591.86,0.00027397,2]
[323242930,1713838254581,-500.0,0.00027397,2]
[323242931,1713838254591,-511.27,0.00027397,2]
[323242932,1713838254602,-734.43,0.00027397,2]
[323242933,1713838254613,-774.0,0.00027397,2]
[323242934,1713838254623,-2163.17,0.00027397,2]
[323242935,1713838254633,-500.0,0.00027397,2]
[323242936,1713838254642,-1131.93,0.00027397,2]
[323242937,1713838254651,-1131.93,0.00027397,2]
[323242938,1713838254660,-1131.93,0.00027397,2]
[323242939,1713838254670,-1131.93,0.00027397,2]
[323242940,1713838254679,-1131.93,0.00027397,2]
[323242941,1713838254688,-1131.93,0.00027397,2]
[323242942,1713838254697,-1131.93,0.00027397,2]
[323242943,1713838254706,-500.0,0.00027397,2]
[323242944,1713838254716,-500.0,0.00027397,2]
[323242945,1713838254725,-500.0,0.00027397,2]
[323242946,1713838254734,-500.0,0.00027397,2]
[323242947,1713838254744,-500.0,0.00027397,2]
[323242948,1713838254753,-626.26,0.00027397,2]
[323242949,1713838254762,-1458.76,0.00027397,2]
[323242950,1713838254772,-500.0,0.00027397,2]
[323242951,1713838254781,-343.69823091,0.00027397,2]
[323242952,1713838254791,-2178.64,0.00027397,2]
[323242953,1713838254800,-626.75875366,0.00027397,2]
[323242954,1713838254809,-659.77,0.00027397,2]
[323242955,1713838254819,-1701.1,0.00027397,2]
[323242956,1713838254827,-733.38,0.00027397,2]
[323242957,1713838254836,-585.62,0.00027397,2]
[323242958,1713838254846,-2227.15,0.00027397,2]
[323242959,1713838254855,-500.0,0.00027397,2]
[323242960,1713838254865,-2984.67,0.00027397,2]
[323242961,1713838254873,-577.89,0.00027397,2]
[323242962,1713838254884,-649.1,0.00027397,2]
[323242963,1713838254895,-1297.58,0.00027397,2]
[323242964,1713838254904,-812.71,0.00027397,2]
[323242965,1713838254913,-4144.62,0.00027397,2]
[323242966,1713838254924,-2726.42,0.00027397,2]
[323242967,1713838254933,-1985.97,0.00027397,2]
[323242968,1713838254942,-3976.81,0.00027397,2]
[323242969,1713838254951,-1388.53,0.00027397,2]
[323242970,1713838254961,-2239.73,0.00027397,2]
[323242971,1713838254970,-500.0,0.00027397,2]
[323242972,1713838254979,-736.99,0.00027397,2]
[323242973,1713838254989,-500.0,0.00027397,2]
[323242974,1713838254999,-974.87,0.00027397,2]
[323242975,1713838255009,-719.16,0.00027397,2]
[323242976,1713838255018,-650.08,0.00027397,2]
[323242977,1713838255028,-510.21,0.00027397,2]
[323242978,1713838255037,-11117.57,0.00027397,2]
[323242979,1713838255047,-983.83,0.00027397,2]
[323242980,1713838255056,-531.98,0.00027397,2]
[323242981,1713838255066,-525.45,0.00027397,2]
[323242982,1713838255075,-2637.44,0.00027397,2]
[323242983,1713838255084,-400.3277968,0.00027397,2]
[323242984,1713838255095,-188.901202,0.00027397,2]
[323242985,1713838255104,-195.854096,0.00027397,2]
[323242986,1713838255113,-223.232238,0.00027397,2]
[323242987,1713838255187,-157.791626,0.00027397,2]
[323242988,1713838255203,-1000.0,0.00027397,2]
[323242989,1713838255212,-166.666666,0.00027397,2]
[323242990,1713838255221,-10000.0,0.00027397,2]
[323242991,1713838255230,-197.24064081,0.000274,2]
[323242992,1713838255238,-975.21164666,0.000274,2]
[323242993,1713838255247,-3000.0,0.000274,7]
[323242994,1713838255258,-154.30051212,0.00027468,2]
[323242995,1713838255267,-500.0,0.00027484,7]
[323242996,1713838255278,-500.72,0.00027484,7]
[323242997,1713838255287,-500.0,0.00027484,7]
[323242998,1713838255296,-1154.75,0.00027484,7]
[323242999,1713838255305,-500.0,0.00027484,7]
[323243000,1713838255315,-500.0,0.00027484,7]
[323243001,1713838255326,-708.92,0.00027484,7]
[323243002,1713838255334,-710.36,0.00027484,7]
[323243003,1713838255343,-500.0,0.00027484,7]
[323243004,1713838255354,-622.34590726,0.00027484,7]
[323243005,1713838255364,-1131.93,0.00027484,2]
[323243006,1713838255373,-500.0,0.00027484,7]
[323243007,1713838255382,-686.78,0.00027486,7]
[323243008,1713838255390,-500.0,0.00027486,7]
[323243009,1713838255400,-500.0,0.00027486,7]
[323243010,1713838255409,-500.0,0.00027486,7]
[323243011,1713838255418,-717.96,0.00027486,7]
[323243012,1713838255428,-500.0,0.00027486,7]
[323243013,1713838255437,-154.30051212,0.00027488,2]
[323243014,1713838255446,-1663.43823622,0.00027492,2]
[323243015,1713838255456,-150.0,0.00027499,2]
[323243016,1713838255465,-10000.0,0.000275,2]
[323243017,1713838255474,-801.79803207,0.000275,17]
[323243018,1713838255483,-43280.70678663,0.000275,2]
[323243019,1713838255493,-1663.43823622,0.00027508,2]
[323243020,1713838255503,-1000.0,0.00027541,2]
[323243021,1713838255512,-198.15262762,0.00027546,7]
[323243022,1713838255522,-1000.0,0.00027565,2]
[323243023,1713838255531,-153.0,0.00027569,2]
[323243024,1713838255540,-1000.0,0.00027572,2]
[323243025,1713838255548,-150.190599,0.000276,2]
[323243026,1713838255557,-1004.763908,0.000276,2]
[323243027,1713838255566,-1000.0,0.00027601,2]
[323243028,1713838255576,-603.33633004,0.00027614,7]
[323243029,1713838255584,-162254.37157847,0.0002763,2]
[323243030,1713838255593,-154.76254067,0.00027635,2]
[323243031,1713838255602,-1000.0,0.00027636,2]
[323243032,1713838255612,-1000.0,0.0002764,2]
[323243033,1713838255621,-1000.0,0.00027644,2]
[323243034,1713838255629,-1000.0,0.00027649,2]
[323243035,1713838255639,-221.58126833,0.00027651,2]
[323243036,1713838255648,-500.0,0.00027671,7]
[323243037,1713838255656,-638.94,0.00027671,7]
[323243038,1713838255665,-774.33,0.00027671,7]
[323243039,1713838255674,-585.47,0.00027671,30]
[323243040,1713838255683,-613.82,0.00027671,7]
[323243041,1713838255693,-591.86,0.00027671,2]
[323243042,1713838255702,-500.0,0.00027671,7]
[323243043,1713838255711,-511.27,0.00027671,7]
[323243044,1713838255720,-734.43,0.00027671,7]
[323243045,1713838255729,-774.0,0.00027671,7]
[323243046,1713838255739,-2163.17,0.00027671,7]
[323243047,1713838255748,-500.0,0.00027671,7]